[Event "Titled Tuesday Blitz August 23 Early 2022"]
[White "Skawinski, Arkadiusz"]
[Black "Samadov, Read"]
[WhiteFideId "1126415"]
[BlackFideId "13417444"]
[WhiteElo "2149"]
[BlackElo "2084"]
[Result "0-1"]
[Round "04"]
[TimeControl "180+1"]
[Date "2022.08.23"]
[WhiteClock "0:00:57"]
[BlackClock "0:01:39"]

1. e4 {[%clk 0:03:00]}  c5 {[%clk 0:02:59]} 2. Nf3 {[%clk 0:03:01]}  d6 {[%clk 0:02:59]} 3. Bb5+ {[%clk 0:03:00]}  Nd7 {[%clk 0:02:59]} 4. a4 {[%clk 0:03:00]}  Nf6 {[%clk 0:02:58]} 5. Nc3 {[%clk 0:03:00]}  e6 {[%clk 0:02:58]} 6. O-O {[%clk 0:02:57]}  Be7 {[%clk 0:02:57]} 7. d4 {[%clk 0:02:57]}  cxd4 {[%clk 0:02:57]} 8. Qxd4 {[%clk 0:02:57]}  O-O {[%clk 0:02:58]} 9. Rd1 {[%clk 0:02:57]}  a6 {[%clk 0:02:58]} 10. Be2 {[%clk 0:02:57]}  b6 {[%clk 0:02:57]} 11. Nd2 {[%clk 0:02:56]}  Bb7 {[%clk 0:02:56]} 12. Nc4 {[%clk 0:02:56]}  d5 {[%clk 0:02:52]} 13. exd5 {[%clk 0:02:54]}  Nxd5 {[%clk 0:02:50]} 14. Nxd5 {[%clk 0:02:52]}  Bxd5 {[%clk 0:02:50]} 15. Ne3 {[%clk 0:02:52]}  Bc5 {[%clk 0:02:47]} 16. Qg4 {[%clk 0:02:47]}  Bc6 {[%clk 0:02:35]} 17. b4 {[%clk 0:02:43]}  Be7 {[%clk 0:02:33]} 18. Bb2 {[%clk 0:02:12]}  Bf6 {[%clk 0:02:32]} 19. Nc4 {[%clk 0:02:12]}  Bxb2 {[%clk 0:02:30]} 20. Nxb2 {[%clk 0:02:12]}  Qf6 {[%clk 0:02:28]} 21. Nc4 {[%clk 0:02:09]}  Rfd8 {[%clk 0:02:03]} 22. Bd3 {[%clk 0:01:25]}  g6 {[%clk 0:01:58]} 23. h4 {[%clk 0:01:24]}  Ne5 {[%clk 0:01:52]} 24. Nxe5 {[%clk 0:01:22]}  Qxe5 {[%clk 0:01:53]} 25. b5 {[%clk 0:01:20]}  axb5 {[%clk 0:01:52]} 26. Re1 {[%clk 0:01:03]}  Qf6 {[%clk 0:01:46]} 27. h5 {[%clk 0:00:58]}  Rxa4 {[%clk 0:01:39]} 28. Rxa4 {[%clk 0:00:57]}  bxa4 {[%clk 0:01:39]} 29. hxg6 {[%clk 0:00:57]}  hxg6 {[%clk 0:01:39]} 0-1


[Site "https://www.chess.com"]

[Event "Titled Tuesday Blitz August 23 Early 2022"]
[White "Xu, Yi"]
[Black "Vovk, Orest"]
[WhiteFideId "8605564"]
[BlackFideId "14113490"]
[WhiteElo "2471"]
[BlackElo "2203"]
[Result "1-0"]
[Round "04"]
[TimeControl "180+1"]
[Date "2022.08.23"]
[WhiteClock "0:00:04"]
[BlackClock "0:00:04"]

1. e4 {[%clk 0:03:00]}  g5 {[%clk 0:02:58]} 2. d4 {[%clk 0:03:00]}  h6 {[%clk 0:02:58]} 3. Nc3 {[%clk 0:02:58]}  Bg7 {[%clk 0:02:57]} 4. h4 {[%clk 0:02:59]}  g4 {[%clk 0:02:57]} 5. Be3 {[%clk 0:02:53]}  d6 {[%clk 0:02:55]} 6. Nge2 {[%clk 0:02:47]}  c6 {[%clk 0:02:55]} 7. Ng3 {[%clk 0:02:47]}  Qa5 {[%clk 0:02:55]} 8. Qd2 {[%clk 0:02:44]}  Nf6 {[%clk 0:02:50]} 9. Bc4 {[%clk 0:02:43]}  b5 {[%clk 0:02:48]} 10. Bb3 {[%clk 0:02:43]}  b4 {[%clk 0:02:46]} 11. Nce2 {[%clk 0:02:43]}  Nbd7 {[%clk 0:02:40]} 12. a3 {[%clk 0:02:41]}  Rb8 {[%clk 0:02:38]} 13. Nf4 {[%clk 0:02:37]}  Qa6 {[%clk 0:02:21]} 14. Nfh5 {[%clk 0:02:32]}  Bf8 {[%clk 0:02:14]} 15. Nxf6+ {[%clk 0:01:40]}  Nxf6 {[%clk 0:02:15]} 16. e5 {[%clk 0:01:41]}  dxe5 {[%clk 0:01:48]} 17. dxe5 {[%clk 0:01:41]}  Nd5 {[%clk 0:01:48]} 18. Bxd5 {[%clk 0:01:10]}  cxd5 {[%clk 0:01:49]} 19. Qxd5 {[%clk 0:01:09]}  e6 {[%clk 0:01:42]} 20. Qb3 {[%clk 0:00:50]}  Rb5 {[%clk 0:01:26]} 21. O-O {[%clk 0:00:37]}  bxa3 {[%clk 0:01:21]} 22. Qc3 {[%clk 0:00:38]}  Rxb2 {[%clk 0:01:08]} 23. Ne4 {[%clk 0:00:35]}  Be7 {[%clk 0:01:00]} 24. Bc5 {[%clk 0:00:32]}  Qc6 {[%clk 0:00:50]} 25. Qxa3 {[%clk 0:00:15]}  Qxe4 {[%clk 0:00:39]} 26. Qxb2 {[%clk 0:00:11]}  Bb7 {[%clk 0:00:28]} 27. Qb5+ {[%clk 0:00:11]}  Bc6 {[%clk 0:00:21]} 28. Qb8+ {[%clk 0:00:11]}  Bd8 {[%clk 0:00:21]} 29. f3 {[%clk 0:00:09]}  gxf3 {[%clk 0:00:19]} 30. Rad1 {[%clk 0:00:08]}  Bd5 {[%clk 0:00:08]} 31. Qb5+ {[%clk 0:00:08]}  Bc6 {[%clk 0:00:08]} 32. Rxd8+ {[%clk 0:00:05]}  Kxd8 {[%clk 0:00:08]} 33. Qb8+ {[%clk 0:00:06]}  Kd7 {[%clk 0:00:08]} 34. Qxa7+ {[%clk 0:00:03]}  Kc8 {[%clk 0:00:06]} 35. Rb1 {[%clk 0:00:02]}  f2+ {[%clk 0:00:04]} 36. Kxf2 {[%clk 0:00:03]}  Qxg2+ {[%clk 0:00:04]} 37. Ke3 {[%clk 0:00:03]}  Qe4+ {[%clk 0:00:04]} 38. Kd2 {[%clk 0:00:02]}  Qd5+ {[%clk 0:00:04]} 39. Kc1 {[%clk 0:00:02]}  Bb7 {[%clk 0:00:05]} 40. Qb6 {[%clk 0:00:02]}  Qh1+ {[%clk 0:00:05]} 41. Kb2 {[%clk 0:00:02]}  Qc6 {[%clk 0:00:05]} 42. Qxc6+ {[%clk 0:00:02]}  Bxc6 {[%clk 0:00:05]} 43. Rf1 {[%clk 0:00:03]}  Be8 {[%clk 0:00:04]} 44. Be7 {[%clk 0:00:02]}  Rg8 {[%clk 0:00:04]} 45. Bf6 {[%clk 0:00:03]}  Rg4 {[%clk 0:00:04]} 46. Rf3 {[%clk 0:00:03]}  Kb7 {[%clk 0:00:04]} 47. Rb3+ {[%clk 0:00:03]}  Kc6 {[%clk 0:00:04]} 48. Rb8 {[%clk 0:00:04]}  Bd7 {[%clk 0:00:03]} 49. Rf8 {[%clk 0:00:04]}  Kd5 {[%clk 0:00:03]} 50. Rh8 {[%clk 0:00:04]}  Rb4+ {[%clk 0:00:01]} 51. Kc3 {[%clk 0:00:04]}  Re4 {[%clk 0:00:02]} 52. Rxh6 {[%clk 0:00:03]}  Bb5 {[%clk 0:00:02]} 53. Rh8 {[%clk 0:00:04]}  Rc4+ {[%clk 0:00:03]} 54. Kb2 {[%clk 0:00:04]}  Rb4+ {[%clk 0:00:03]} 55. Kc1 {[%clk 0:00:04]}  Rg4 {[%clk 0:00:04]} 56. h5 {[%clk 0:00:04]}  Rg2 {[%clk 0:00:03]} 57. h6 {[%clk 0:00:04]}  Ba4 {[%clk 0:00:03]} 58. h7 {[%clk 0:00:03]}  Bxc2 {[%clk 0:00:03]} 59. Rd8+ {[%clk 0:00:03]}  Ke4 {[%clk 0:00:03]} 60. h8=Q {[%clk 0:00:04]}  Bd3 {[%clk 0:00:04]} 61. Qh4+ {[%clk 0:00:04]}  Kf3 {[%clk 0:00:04]} 62. Rxd3+ {[%clk 0:00:04]} 1-0


[Site "https://www.chess.com"]

[Event "Titled Tuesday Blitz August 23 Early 2022"]
[White "Yaniuk, Volodymyr"]
[Black "Molina, Roberto Junio Brito"]
[WhiteFideId "14133083"]
[BlackFideId "2109450"]
[WhiteElo "2141"]
[BlackElo "2403"]
[Result "0-1"]
[Round "04"]
[TimeControl "180+1"]
[Date "2022.08.23"]
[WhiteClock "0:00:08"]
[BlackClock "0:00:20"]

1. d4 {[%clk 0:02:57]}  d5 {[%clk 0:02:59]} 2. c4 {[%clk 0:02:57]}  c6 {[%clk 0:02:58]} 3. Nf3 {[%clk 0:02:56]}  Nf6 {[%clk 0:02:58]} 4. e3 {[%clk 0:02:56]}  Bf5 {[%clk 0:02:56]} 5. Nc3 {[%clk 0:02:55]}  e6 {[%clk 0:02:57]} 6. Nh4 {[%clk 0:02:55]}  Bg6 {[%clk 0:02:57]} 7. Qb3 {[%clk 0:02:53]}  Qb6 {[%clk 0:02:55]} 8. Nxg6 {[%clk 0:02:53]}  hxg6 {[%clk 0:02:55]} 9. Bd2 {[%clk 0:02:50]}  Nbd7 {[%clk 0:02:55]} 10. Be2 {[%clk 0:02:46]}  Be7 {[%clk 0:02:54]} 11. O-O {[%clk 0:02:43]}  O-O {[%clk 0:02:54]} 12. Qc2 {[%clk 0:02:42]}  Rac8 {[%clk 0:02:53]} 13. Rfd1 {[%clk 0:02:25]}  Qd8 {[%clk 0:02:47]} 14. e4 {[%clk 0:02:25]}  dxe4 {[%clk 0:02:47]} 15. Nxe4 {[%clk 0:02:26]}  Nxe4 {[%clk 0:02:47]} 16. Qxe4 {[%clk 0:02:27]}  Nf6 {[%clk 0:02:47]} 17. Qe3 {[%clk 0:02:23]}  Qb6 {[%clk 0:02:47]} 18. Bc3 {[%clk 0:02:22]}  Bb4 {[%clk 0:02:44]} 19. Bxb4 {[%clk 0:01:47]}  Qxb4 {[%clk 0:02:43]} 20. b3 {[%clk 0:01:47]}  Rfd8 {[%clk 0:02:41]} 21. Bf3 {[%clk 0:01:46]}  Rc7 {[%clk 0:02:39]} 22. Rd2 {[%clk 0:01:43]}  Rcd7 {[%clk 0:02:38]} 23. Rad1 {[%clk 0:01:43]}  a5 {[%clk 0:02:37]} 24. a4 {[%clk 0:01:40]}  Qb6 {[%clk 0:02:34]} 25. g3 {[%clk 0:01:34]}  Qc7 {[%clk 0:02:29]} 26. Kg2 {[%clk 0:01:33]}  Qd6 {[%clk 0:02:28]} 27. d5 {[%clk 0:01:26]}  cxd5 {[%clk 0:02:26]} 28. cxd5 {[%clk 0:01:26]}  exd5 {[%clk 0:02:26]} 29. g4 {[%clk 0:01:14]}  d4 {[%clk 0:02:23]} 30. Rxd4 {[%clk 0:01:12]}  Qxd4 {[%clk 0:02:22]} 31. Rxd4 {[%clk 0:01:13]}  Rxd4 {[%clk 0:02:23]} 32. g5 {[%clk 0:01:13]}  Nh7 {[%clk 0:02:20]} 33. Qe5 {[%clk 0:01:10]}  b6 {[%clk 0:02:16]} 34. Qb5 {[%clk 0:01:07]}  R4d6 {[%clk 0:02:11]} 35. h4 {[%clk 0:01:05]}  Nf8 {[%clk 0:02:09]} 36. b4 {[%clk 0:01:05]}  axb4 {[%clk 0:02:08]} 37. Qxb4 {[%clk 0:01:06]}  Ne6 {[%clk 0:02:05]} 38. a5 {[%clk 0:01:02]}  bxa5 {[%clk 0:02:03]} 39. Qxa5 {[%clk 0:01:02]}  Rd4 {[%clk 0:02:00]} 40. Kg3 {[%clk 0:00:58]}  Rc4 {[%clk 0:01:47]} 41. Bg4 {[%clk 0:00:43]}  Rd3+ {[%clk 0:01:34]} 42. f3 {[%clk 0:00:42]}  Rcd4 {[%clk 0:01:33]} 43. Qb5 {[%clk 0:00:38]}  Nf8 {[%clk 0:01:25]} 44. Qe8 {[%clk 0:00:32]}  Rd8 {[%clk 0:01:25]} 45. Qe4 {[%clk 0:00:31]}  R3d4 {[%clk 0:01:24]} 46. Qe3 {[%clk 0:00:31]}  Rb4 {[%clk 0:01:16]} 47. Qe7 {[%clk 0:00:31]}  Rbb8 {[%clk 0:01:16]} 48. Qc7 {[%clk 0:00:28]}  Re8 {[%clk 0:01:16]} 49. Qd6 {[%clk 0:00:28]}  Rbd8 {[%clk 0:01:16]} 50. Qc7 {[%clk 0:00:28]}  Ra8 {[%clk 0:01:11]} 51. Qb7 {[%clk 0:00:28]}  Rab8 {[%clk 0:01:11]} 52. Qc7 {[%clk 0:00:28]}  Red8 {[%clk 0:01:11]} 53. Qe5 {[%clk 0:00:27]}  Re8 {[%clk 0:01:07]} 54. Qc7 {[%clk 0:00:27]}  Rb3 {[%clk 0:01:04]} 55. Qc4 {[%clk 0:00:25]}  Rb7 {[%clk 0:01:02]} 56. Qd5 {[%clk 0:00:24]}  Rc7 {[%clk 0:01:02]} 57. Qd6 {[%clk 0:00:24]}  Rce7 {[%clk 0:01:02]} 58. h5 {[%clk 0:00:21]}  gxh5 {[%clk 0:01:01]} 59. Bxh5 {[%clk 0:00:22]}  g6 {[%clk 0:01:02]} 60. Bg4 {[%clk 0:00:22]}  Ne6 {[%clk 0:01:01]} 61. Qe5 {[%clk 0:00:22]}  Ng7 {[%clk 0:01:00]} 62. Qf6 {[%clk 0:00:22]}  Re6 {[%clk 0:00:55]} 63. Qd4 {[%clk 0:00:20]}  Re1 {[%clk 0:00:54]} 64. Qd7 {[%clk 0:00:19]}  R1e7 {[%clk 0:00:54]} 65. Qd6 {[%clk 0:00:19]}  Re5 {[%clk 0:00:53]} 66. Qd2 {[%clk 0:00:17]}  Nf5+ {[%clk 0:00:44]} 67. Kf4 {[%clk 0:00:16]}  Ne3 {[%clk 0:00:41]} 68. Bh3 {[%clk 0:00:14]}  Nd5+ {[%clk 0:00:36]} 69. Kg4 {[%clk 0:00:14]}  Ne7 {[%clk 0:00:31]} 70. Kg3 {[%clk 0:00:13]}  Nf5+ {[%clk 0:00:30]} 71. Kf4 {[%clk 0:00:13]}  Ng7 {[%clk 0:00:29]} 72. Bg4 {[%clk 0:00:13]}  R5e7 {[%clk 0:00:28]} 73. Qd6 {[%clk 0:00:11]}  Ne6+ {[%clk 0:00:28]} 74. Bxe6 {[%clk 0:00:10]}  Rxe6 {[%clk 0:00:29]} 75. Qd2 {[%clk 0:00:09]}  R6e7 {[%clk 0:00:29]} 76. Kg4 {[%clk 0:00:10]}  Re2 {[%clk 0:00:28]} 77. Qf4 {[%clk 0:00:09]}  Rg2+ {[%clk 0:00:28]} 78. Kh3 {[%clk 0:00:10]}  Rg1 {[%clk 0:00:27]} 79. Kh2 {[%clk 0:00:09]}  Rge1 {[%clk 0:00:25]} 80. Qc7 {[%clk 0:00:06]}  R1e5 {[%clk 0:00:25]} 81. Qd7 {[%clk 0:00:04]}  R8e7 {[%clk 0:00:20]} 82. Qd8+ {[%clk 0:00:04]}  Re8 {[%clk 0:00:20]} 83. Qd7 {[%clk 0:00:04]}  Ra8 {[%clk 0:00:18]} 84. Qb7 {[%clk 0:00:04]}  Ra2+ {[%clk 0:00:15]} 85. Kh3 {[%clk 0:00:04]}  Rxg5 {[%clk 0:00:10]} 86. Qb8+ {[%clk 0:00:05]}  Kh7 {[%clk 0:00:10]} 87. Qf8 {[%clk 0:00:04]}  Rh5+ {[%clk 0:00:09]} 88. Kg4 {[%clk 0:00:04]}  Ra7 {[%clk 0:00:10]} 89. f4 {[%clk 0:00:03]}  Rf5 {[%clk 0:00:09]} 90. Qd8 {[%clk 0:00:02]}  Ra4 {[%clk 0:00:09]} 91. Qd1 {[%clk 0:00:02]}  Raxf4+ {[%clk 0:00:09]} 92. Kg3 {[%clk 0:00:02]}  Kg7 {[%clk 0:00:09]} 93. Qa1+ {[%clk 0:00:01]}  Rf6 {[%clk 0:00:10]} 94. Kg2 {[%clk 0:00:01]}  Rf5 {[%clk 0:00:10]} 95. Kg3 {[%clk 0:00:01]}  g5 {[%clk 0:00:11]} 96. Kg4 {[%clk 0:00:01]}  Kg6 {[%clk 0:00:12]} 97. Qb1 {[%clk 0:00:02]}  Kg7 {[%clk 0:00:12]} 98. Qxf5 {[%clk 0:00:02]}  Rxf5 {[%clk 0:00:13]} 99. Kxf5 {[%clk 0:00:03]}  f6 {[%clk 0:00:13]} 100. Kg4 {[%clk 0:00:04]}  Kg6 {[%clk 0:00:14]} 101. Kg3 {[%clk 0:00:04]}  f5 {[%clk 0:00:15]} 102. Kf3 {[%clk 0:00:05]}  Kf6 {[%clk 0:00:16]} 103. Kg3 {[%clk 0:00:06]}  Ke5 {[%clk 0:00:17]} 104. Kf3 {[%clk 0:00:07]}  Kd4 {[%clk 0:00:17]} 105. Kf2 {[%clk 0:00:07]}  Ke4 {[%clk 0:00:18]} 106. Kg2 {[%clk 0:00:08]}  Kf4 {[%clk 0:00:19]} 107. Kf2 {[%clk 0:00:08]}  Kg4 {[%clk 0:00:20]} 0-1


[Site "https://www.chess.com"]

[Event "Titled Tuesday Blitz August 23 Early 2022"]
[White "Alekseenko, Kirill"]
[Black "Shuvalova, Polina"]
[WhiteFideId "4135539"]
[BlackFideId "24171760"]
[WhiteElo "2682"]
[BlackElo "2330"]
[Result "1-0"]
[Round "05"]
[TimeControl "180+1"]
[Date "2022.08.23"]
[WhiteClock "0:00:13"]
[BlackClock "0:00:04"]

1. e4 {[%clk 0:03:00]}  c6 {[%clk 0:02:59]} 2. d3 {[%clk 0:02:56]}  d5 {[%clk 0:03:00]} 3. Nf3 {[%clk 0:02:56]}  g6 {[%clk 0:02:54]} 4. e5 {[%clk 0:02:51]}  Bg7 {[%clk 0:02:52]} 5. d4 {[%clk 0:02:51]}  f6 {[%clk 0:02:49]} 6. exf6 {[%clk 0:02:49]}  exf6 {[%clk 0:02:49]} 7. Be2 {[%clk 0:02:49]}  Nh6 {[%clk 0:02:49]} 8. O-O {[%clk 0:02:49]}  O-O {[%clk 0:02:48]} 9. Nbd2 {[%clk 0:02:49]}  Nf7 {[%clk 0:02:46]} 10. Nb3 {[%clk 0:02:42]}  Na6 {[%clk 0:02:43]} 11. Bxa6 {[%clk 0:02:34]}  bxa6 {[%clk 0:02:44]} 12. Re1 {[%clk 0:02:34]}  Nd6 {[%clk 0:02:33]} 13. Nc5 {[%clk 0:02:32]}  Re8 {[%clk 0:02:27]} 14. Rxe8+ {[%clk 0:02:06]}  Qxe8 {[%clk 0:02:21]} 15. Qf1 {[%clk 0:01:52]}  Bg4 {[%clk 0:02:06]} 16. Bf4 {[%clk 0:01:42]}  Nc4 {[%clk 0:01:56]} 17. Re1 {[%clk 0:01:41]}  Qf7 {[%clk 0:01:51]} 18. b3 {[%clk 0:01:32]}  Bxf3 {[%clk 0:01:45]} 19. gxf3 {[%clk 0:01:30]}  Na3 {[%clk 0:01:15]} 20. c3 {[%clk 0:01:27]}  Nb5 {[%clk 0:01:14]} 21. a4 {[%clk 0:01:22]}  Nc7 {[%clk 0:01:07]} 22. Bxc7 {[%clk 0:01:22]}  Qxc7 {[%clk 0:01:07]} 23. Qxa6 {[%clk 0:01:22]}  Bf8 {[%clk 0:00:57]} 24. Ne6 {[%clk 0:01:05]}  Qd7 {[%clk 0:00:44]} 25. Kg2 {[%clk 0:00:57]}  Bd6 {[%clk 0:00:43]} 26. b4 {[%clk 0:00:43]}  f5 {[%clk 0:00:20]} 27. b5 {[%clk 0:00:38]}  cxb5 {[%clk 0:00:20]} 28. axb5 {[%clk 0:00:31]}  Rc8 {[%clk 0:00:20]} 29. Qa2 {[%clk 0:00:17]}  Bb8 {[%clk 0:00:18]} 30. Nc5 {[%clk 0:00:15]}  Qd6 {[%clk 0:00:18]} 31. Kf1 {[%clk 0:00:15]}  Rd8 {[%clk 0:00:15]} 32. Re5 {[%clk 0:00:14]}  Kh8 {[%clk 0:00:10]} 33. Nb7 {[%clk 0:00:15]}  Qc7 {[%clk 0:00:05]} 34. Nxd8 {[%clk 0:00:14]}  Qxc3 {[%clk 0:00:05]} 35. Re8+ {[%clk 0:00:14]}  Kg7 {[%clk 0:00:05]} 36. Ne6+ {[%clk 0:00:14]}  Kh6 {[%clk 0:00:05]} 37. Rxb8 {[%clk 0:00:13]}  Qc1+ {[%clk 0:00:04]} 38. Kg2 {[%clk 0:00:13]} 1-0


[Site "https://www.chess.com"]

[Event "Titled Tuesday Blitz August 23 Early 2022"]
[White "Bharath Subramaniyam H"]
[Black "Dounis, Alexandros"]
[WhiteFideId "46634827"]
[BlackFideId "4213238"]
[WhiteElo "2346"]
[BlackElo "2204"]
[Result "0-1"]
[Round "05"]
[TimeControl "180+1"]
[Date "2022.08.23"]
[WhiteClock "0:00:02"]
[BlackClock "0:00:37"]

1. e4 {[%clk 0:02:21]}  e5 {[%clk 0:02:58]} 2. Nf3 {[%clk 0:02:21]}  Nc6 {[%clk 0:02:58]} 3. Bc4 {[%clk 0:02:22]}  Bc5 {[%clk 0:02:55]} 4. d3 {[%clk 0:02:22]}  Nf6 {[%clk 0:02:54]} 5. Bg5 {[%clk 0:02:20]}  h6 {[%clk 0:02:53]} 6. Bh4 {[%clk 0:02:19]}  g5 {[%clk 0:02:52]} 7. Bg3 {[%clk 0:02:18]}  d6 {[%clk 0:02:52]} 8. c3 {[%clk 0:02:17]}  Bg4 {[%clk 0:02:51]} 9. h3 {[%clk 0:02:14]}  Bh5 {[%clk 0:02:51]} 10. Nbd2 {[%clk 0:02:14]}  O-O {[%clk 0:02:45]} 11. b4 {[%clk 0:02:08]}  Bb6 {[%clk 0:02:45]} 12. a4 {[%clk 0:02:09]}  a5 {[%clk 0:02:45]} 13. b5 {[%clk 0:02:07]}  Ne7 {[%clk 0:02:44]} 14. Bh2 {[%clk 0:02:03]}  c6 {[%clk 0:02:40]} 15. g4 {[%clk 0:02:02]}  Bg6 {[%clk 0:02:39]} 16. bxc6 {[%clk 0:01:56]}  bxc6 {[%clk 0:02:39]} 17. Bb3 {[%clk 0:01:57]}  Bh7 {[%clk 0:02:29]} 18. h4 {[%clk 0:01:52]}  Nxg4 {[%clk 0:02:27]} 19. Bg3 {[%clk 0:01:53]}  Ng6 {[%clk 0:02:25]} 20. hxg5 {[%clk 0:01:47]}  hxg5 {[%clk 0:02:26]} 21. Nd4 {[%clk 0:01:08]}  Nxf2 {[%clk 0:02:18]} 22. Bxf2 {[%clk 0:01:05]}  Nf4 {[%clk 0:02:14]} 23. Nxc6 {[%clk 0:00:31]}  Bxf2+ {[%clk 0:02:03]} 24. Kxf2 {[%clk 0:00:29]}  Qb6+ {[%clk 0:02:03]} 25. Kf1 {[%clk 0:00:23]}  Qxc6 {[%clk 0:02:00]} 26. Qg4 {[%clk 0:00:24]}  Qxc3 {[%clk 0:01:37]} 27. Qxg5+ {[%clk 0:00:24]}  Ng6 {[%clk 0:01:28]} 28. Bc4 {[%clk 0:00:18]}  Qxa1+ {[%clk 0:01:21]} 29. Kg2 {[%clk 0:00:19]}  Qxh1+ {[%clk 0:01:17]} 30. Kxh1 {[%clk 0:00:20]}  Kg7 {[%clk 0:01:16]} 31. Nf3 {[%clk 0:00:18]}  Rh8 {[%clk 0:01:12]} 32. Kg1 {[%clk 0:00:18]}  Bg8 {[%clk 0:01:10]} 33. d4 {[%clk 0:00:19]}  f6 {[%clk 0:01:07]} 34. Qg4 {[%clk 0:00:12]}  Bxc4 {[%clk 0:01:07]} 35. Qd7+ {[%clk 0:00:12]}  Bf7 {[%clk 0:01:08]} 36. Qxd6 {[%clk 0:00:08]}  Rhd8 {[%clk 0:01:08]} 37. Qc6 {[%clk 0:00:07]}  exd4 {[%clk 0:01:05]} 38. Kf2 {[%clk 0:00:08]}  d3 {[%clk 0:01:05]} 39. Ke3 {[%clk 0:00:07]}  Rac8 {[%clk 0:01:04]} 40. Qb6 {[%clk 0:00:07]}  d2 {[%clk 0:00:50]} 41. Nxd2 {[%clk 0:00:07]}  Rc3+ {[%clk 0:00:48]} 42. Ke2 {[%clk 0:00:08]}  Nf4+ {[%clk 0:00:48]} 43. Kd1 {[%clk 0:00:08]}  Rcd3 {[%clk 0:00:46]} 44. Qg1+ {[%clk 0:00:08]}  Bg6 {[%clk 0:00:44]} 45. Qa7+ {[%clk 0:00:08]}  R8d7 {[%clk 0:00:43]} 46. Qb8 {[%clk 0:00:05]}  Rxd2+ {[%clk 0:00:43]} 47. Kc1 {[%clk 0:00:05]}  Rf2 {[%clk 0:00:40]} 48. Qc8 {[%clk 0:00:03]}  Rdd2 {[%clk 0:00:38]} 49. Qc7+ {[%clk 0:00:03]}  Bf7 {[%clk 0:00:38]} 50. Qxa5 {[%clk 0:00:02]}  Nd3+ {[%clk 0:00:37]} 51. Kb1 {[%clk 0:00:02]}  Rd1# {[%clk 0:00:37]} 0-1


[Site "https://www.chess.com"]

[Event "Titled Tuesday Blitz August 23 Early 2022"]
[White "Blanco Ronquillo, Humberto L."]
[Black "Kravtsiv, Martyn"]
[WhiteFideId "3504239"]
[BlackFideId "14113147"]
[WhiteElo "2425"]
[BlackElo "2694"]
[Result "1-0"]
[Round "05"]
[TimeControl "180+1"]
[Date "2022.08.23"]
[WhiteClock "0:00:07"]
[BlackClock "0:00:01"]

1. d4 {[%clk 0:03:00]}  d5 {[%clk 0:02:58]} 2. c4 {[%clk 0:03:00]}  e6 {[%clk 0:02:58]} 3. Nc3 {[%clk 0:02:57]}  Bb4 {[%clk 0:02:58]} 4. cxd5 {[%clk 0:02:55]}  exd5 {[%clk 0:02:58]} 5. Qa4+ {[%clk 0:02:56]}  Nc6 {[%clk 0:02:57]} 6. Nf3 {[%clk 0:02:57]}  Nf6 {[%clk 0:02:56]} 7. Bg5 {[%clk 0:02:57]}  h6 {[%clk 0:02:47]} 8. Bxf6 {[%clk 0:02:57]}  Qxf6 {[%clk 0:02:46]} 9. e3 {[%clk 0:02:58]}  Be6 {[%clk 0:02:34]} 10. Be2 {[%clk 0:02:57]}  O-O {[%clk 0:02:33]} 11. O-O {[%clk 0:02:56]}  a6 {[%clk 0:02:28]} 12. Rfc1 {[%clk 0:02:56]}  Bd6 {[%clk 0:02:21]} 13. Qd1 {[%clk 0:02:55]}  Rfe8 {[%clk 0:02:09]} 14. Na4 {[%clk 0:02:55]}  Ne7 {[%clk 0:02:03]} 15. Nc5 {[%clk 0:02:54]}  Bf5 {[%clk 0:02:03]} 16. Nxb7 {[%clk 0:02:52]}  Reb8 {[%clk 0:01:50]} 17. Nxd6 {[%clk 0:02:52]}  Qxd6 {[%clk 0:01:51]} 18. b3 {[%clk 0:02:48]}  a5 {[%clk 0:01:48]} 19. Rc3 {[%clk 0:02:45]}  c6 {[%clk 0:01:40]} 20. Rac1 {[%clk 0:02:42]}  Qa3 {[%clk 0:01:28]} 21. Qd2 {[%clk 0:02:38]}  a4 {[%clk 0:01:28]} 22. Bd1 {[%clk 0:02:09]}  axb3 {[%clk 0:01:28]} 23. Bxb3 {[%clk 0:02:09]}  Qd6 {[%clk 0:01:28]} 24. Ne5 {[%clk 0:02:08]}  Rb6 {[%clk 0:01:28]} 25. h3 {[%clk 0:02:04]}  Be4 {[%clk 0:01:18]} 26. Qd1 {[%clk 0:02:00]}  Rba6 {[%clk 0:00:58]} 27. Qh5 {[%clk 0:01:51]}  Qe6 {[%clk 0:00:55]} 28. Qg4 {[%clk 0:01:47]}  Bf5 {[%clk 0:00:53]} 29. Qg3 {[%clk 0:01:46]}  Be4 {[%clk 0:00:52]} 30. f3 {[%clk 0:01:36]}  Bh7 {[%clk 0:00:50]} 31. e4 {[%clk 0:01:36]}  Qd6 {[%clk 0:00:43]} 32. exd5 {[%clk 0:01:33]}  cxd5 {[%clk 0:00:36]} 33. Qf2 {[%clk 0:01:14]}  Bf5 {[%clk 0:00:35]} 34. Qd2 {[%clk 0:01:06]}  Be6 {[%clk 0:00:34]} 35. Nd3 {[%clk 0:01:06]}  Qg3 {[%clk 0:00:25]} 36. Qf4 {[%clk 0:01:02]}  Qxf4 {[%clk 0:00:17]} 37. Nxf4 {[%clk 0:01:03]}  Nf5 {[%clk 0:00:17]} 38. Rd1 {[%clk 0:00:58]}  Rb8 {[%clk 0:00:17]} 39. g4 {[%clk 0:00:57]}  Ne7 {[%clk 0:00:16]} 40. Re1 {[%clk 0:00:56]}  Kf8 {[%clk 0:00:15]} 41. Rce3 {[%clk 0:00:52]}  Rb4 {[%clk 0:00:14]} 42. Nxe6+ {[%clk 0:00:52]}  Rxe6 {[%clk 0:00:14]} 43. Rxe6 {[%clk 0:00:52]}  fxe6 {[%clk 0:00:15]} 44. Rxe6 {[%clk 0:00:52]}  Rxd4 {[%clk 0:00:15]} 45. Kf2 {[%clk 0:00:45]}  Kf7 {[%clk 0:00:14]} 46. Rd6 {[%clk 0:00:44]}  Ke8 {[%clk 0:00:08]} 47. Ke3 {[%clk 0:00:44]}  Rb4 {[%clk 0:00:08]} 48. Bxd5 {[%clk 0:00:43]}  Rb6 {[%clk 0:00:08]} 49. Re6 {[%clk 0:00:35]}  Kd7 {[%clk 0:00:07]} 50. Re5 {[%clk 0:00:23]}  Kd6 {[%clk 0:00:06]} 51. Re6+ {[%clk 0:00:16]}  Kd7 {[%clk 0:00:06]} 52. Rxb6 {[%clk 0:00:09]}  Nxd5+ {[%clk 0:00:06]} 53. Ke4 {[%clk 0:00:10]}  Nxb6 {[%clk 0:00:06]} 54. Kf5 {[%clk 0:00:11]}  Ke7 {[%clk 0:00:06]} 55. Kg6 {[%clk 0:00:11]}  Kf8 {[%clk 0:00:07]} 56. f4 {[%clk 0:00:12]}  Nd5 {[%clk 0:00:06]} 57. Kf5 {[%clk 0:00:10]}  Ke7 {[%clk 0:00:06]} 58. a4 {[%clk 0:00:10]}  Ne3+ {[%clk 0:00:04]} 59. Kg6 {[%clk 0:00:09]}  Nd5 {[%clk 0:00:01]} 60. f5 {[%clk 0:00:07]} 1-0


[Site "https://www.chess.com"]